{"text_format":"1","workbook":"xlsx","n_sheets":5,"sheets":["DRUK ZAMÓWIENIA","map1","map","Specyfikacja Zamówienia","Regulaminy Partnerskie"],"not_rendered":{"charts":0,"images":2,"macros":1,"external_links":0,"defined_names":2,"comments":0,"pivot_tables":0},"unopened":[],"bounds":{"document_bytes":16777216,"sheet_cells":100000,"rows_first":2000,"rows_last":500,"rows_between":2000,"halvings":0,"cell_chars":16384,"cell_head_chars":4096},"cells_cut":0,"cells_raw":0,"read":"whole","date_system":"1900"}

{"sheet":"DRUK ZAMÓWIENIA","index":0,"n_rows":61,"n_cols":13,"rows_kept":61,"cut":false,"hidden":false,"merged":[[31,11,31,15],[31,1,31,9],[17,8,17,11],[21,1,21,7],[22,1,22,15],[24,1,24,15],[27,3,27,15],[29,1,29,15],[27,1,27,2],[28,1,28,2],[28,3,28,15],[19,1,19,15],[20,1,20,7],[20,8,20,15],[23,1,23,15],[21,8,21,15],[11,1,11,6],[11,7,11,15],[18,1,18,10],[18,11,18,15],[17,1,17,2],[17,3,17,5],[17,6,17,7],[15,12,15,15],[0,0,10,14],[13,1,13,15],[16,3,16,11],[11,0,57,0],[47,6,49,9],[43,1,43,9],[17,12,17,15],[26,1,26,15],[16,12,16,15],[14,12,14,15],[40,11,40,12],[14,1,14,2],[15,1,15,2],[15,3,15,11],[16,1,16,2],[14,3,14,11],[42,1,42,2],[32,8,32,9],[32,2,32,7],[50,1,50,9],[40,3,40,9],[38,1,39,9],[33,8,33,9],[35,1,35,15],[40,13,40,15],[38,11,39,15],[40,1,40,2],[32,13,32,15],[33,11,33,15],[33,2,33,7],[32,11,32,12],[36,1,36,15],[62,19,64,27],[41,19,55,23],[42,3,42,9],[58,0,59,16],[47,1,49,5],[41,1,41,2],[41,3,41,9],[41,11,42,12],[41,13,42,15],[46,11,57,15],[43,11,45,15],[44,2,44,9],[45,2,45,9],[51,1,57,9],[60,0,60,16],[46,2,46,9]]}
[]
[]
[]
[]
[]
[]
[]
[]
[]
[]
[]
["e-mail: info.SVC.PL@sodexo.com","Key Account Manager/Przedstawiciel Sodexo:"]
[]
[null,"I. Dane Klienta (Podmiotu zamawiającego do dokumentów finansowo-księgowych):"]
[null,"Nazwa Firmy: ",null,null,null,null,null,null,null,null,null,null,"Adres do wysyłki faktury Proforma oraz informacji o statusie zamówienia:"]
[null,"Ulica:",null,null,null,null,null,null,null,null,null,null,"e-mail:"]
[null,"Kod, miasto: ",null,null,null,null,null,null,null,null,null,null,"Adres do przesłania dokumentów księgowych wyłącznie w formie elektronicznej:"]
[null,"NIP: ",null,null,null,null,"Telefon:",null,null,null,null,null,"e-mail:"]
[null,"Nr rachunku bankowego Klienta (rachunek, z którego będą opłacane wszystkie należności wynikające z zamówienia):"]
[null,"                                                 Zapłata przez podmiot trzeci (możliwość zapłaty przez podmiot inny niż Klient podlega akceptacji Pluxee):"]
[null,"Nazwa, adres i NIP podmiotu trzeciego : "]
[null,"Nr rachunku bankowego podmiotu trzeciego:"]
[null,"                                                 Zamawiający posiada stałe miejsce prowadzenia działaności poza terytorium Polski*"]
[null,"                                                 eVouchery/ Bilety do kina są wydawane osobom zajmującym eksponowane stanowisko polityczne**"]
[null,"W przypadku konieczności wskazania na dokumentach księgowych danych ODBIORCY prosimy o uwzględnienie tego w polu UWAGI"]
[]
[null,"II. Dostawa eVoucherów (Biletów do kina) odbywa się wyłącznie w formie elektronicznej (jeśli adres e-mail jest inny niż podany w sekcji I. lub powinien trafić do na więcej niż jeden adres):"]
[null,"E-mail: "]
[null,"Telefon komórkowy:"]
[]
[]
[null,"III. Specyfikacja zamówienia eVoucherów/ Biletów do kina:",null,null,null,null,null,null,null,null,null,"IV. Proponowana data dostawy eVoucherów/ Biletów do kina:"]
[null,null,"POZYCJE ZAMÓWIENIA",null,null,null,null,null,"WARTOŚĆ (PLN)",null,null,"(dzień – miesiąc – rok)"]
[null,"A","Łączna wartość biletów/ Razem do zapłaty",null,null,null,null,null,{"$f":"'Specyfikacja Zamówienia'!D1","v":0},null,null,"UWAGI:"]
[]
[null,"        Oświadczam, że: (i) zapoznałem/am się i akceptuję treść Regulaminu Serwisu oraz regulaminów korzystania z eVoucherów/ Biletów do kina wybranych przeze mnie w ramach niniejszego zamówienia, które to regulaminy dostępne są na stronach internetowych wydawców eVoucherów/ Biletów do kina; (ii) jestem świadomy, że regulaminy korzystania z eVoucherów/ Biletów do kina wybranych w ramach niniejszego zamówienia zostały przygotowane przez wydawców eVoucherów/ Biletów do kina, w związku z czym Pluxee nie ponosi odpowiedzialności za ich treść."]
[null,"   Jeżeli eVoucher(y) zamawiane są przez osobę fizyczną prowadzącą działalność gospodarczą, bezpośrednio w związku z prowadzoną działalnością gospodarczą, gdy Umowa sprzedaży nie ma charakteru zawodowego*, oświadczam, że wyrażam zgodę na dostarczenie przez Pluxee  eVouchera(ów) w terminie uprawniającym mnie do odstąpienia od Umowy sprzedaży. Przyjmuję do wiadomości, że wiąże się to z UTRATĄ przysługującego mi prawa do odstąpienia od umowy na podstawie art. 38 pkt 13 ustawy z dnia 30 maja 2014 r. o prawach konsumenta. W przypadku, gdy eVoucher(y) zamawiane są przez inne podmioty lub gdy Umowa sprzedaży ma charakter zawodowy, przyjmuję do wiadomości, że jako przedsiębiorcy, nie przysługuje mi prawo odstąpienia od Umowy sprzedaży eVoucherów objętych zamówieniem.\n\n* osoba, o której mowa w art. 38a ustawy z dnia 30 maja 2014 r. o prawach konsumenta (Dz. U. z 2020, poz. 287 z późn. zm.)."]
[]
[null,"V. Wypełnia Klient (dane osoby, która sporządziła niniejsze zamówienie oraz pieczęć firmowa):",null,null,null,null,null,null,null,null,null,"VI. Wypełnia Sodexo (dane osoby, która przyjęła niniejsze zamówienie): "]
[]
[null,"Imię i Nazwisko: ",null,null,null,null,null,null,null,null,null,"Imię i Nazwisko:"]
[null,"E-mail: ",null,null,null,null,null,null,null,null,null,"Numer zamówienia:"]
[null,"Nr telefonu:"]
[null,"Prosimy zaznacz poniższe zgody, jeśli dotychczas ich nie wyrażałaś/eś:",null,null,null,null,null,null,null,null,null,"*Oświadczenie na potrzeby art.. 28b ustawy z dnia 11 marca 2004 r. o podatku od towarów i usług (Dz.U. 2004 Nr54 poz 535 VAT z późn. Zm.) - Zamawiający oświadcza, że zakupione usługi będą wykorzystywane na potrzeby stałęgo miejsca prowadzenia działalności, które znajduje się poza terytorium Polski, czyli faktura będzie wsytawiona ze stawką NP.                                                        ** Oświadczenie Zamwiajacego dotyczy wydawania eVoucherów osobom zajmującym eksponowane stanowisko polityczne w rozumieniu art. 2 ust. 2 ustawy z dnia 1 marca 2018 r. o przeciwdziałaniu praniu pieniędzy oraz finansowaniu terroryzmu.                                                                                                                                                                                                                "]
[null,null,"Wyrażam dobrowolną zgodę na otrzymywanie informacji handlowych i marketingowych od Pluxee na podany przeze mnie adres poczty elektronicznej."]
[null,null,"Wyrażam dobrowolną zgodę na prowadzenie przez Pluxee działań marketingowych polegających na przekazywaniu informacji o produktach i usługach Pluxee przy użyciu podanego przeze mnie numeru telefonu."]
[null,null,"Wyrażam dobrowolną zgodę na profilowanie, którego skutkiem będą automatycznie podejmowane decyzje, mające dla mnie znaczenie – jak np. udzielenie rabatów lub ofert specjalnych",null,null,null,null,null,null,null,null,"Administratorem Twoich danych osobowych jest Pluxee Polska Sp. z o.o. z siedzibą w Warszawie, ul. Rzymowskiego 53, 02-697 Warszawa (\"Pluxee\"). Dane kontaktowe Inspektora Ochrony Danych: IOD.Polska@sodexo.com, nr tel. (22) 535 11 11. Twoje dane będą przetwarzane w celu realizacji umowy zawartej z Klientem, zabezpieczeniem ewentualnych roszczeń oraz obroną przed roszczeniami (podstawa przetwarzania danych to art. 6 ust. 1 lit. b) RODO, gdy osobą wypełniającą formularz zamówienia jest Klient lub art. 6 ust. 1 lit. f) RODO tj. prawnie uzasadniony interes Administratora, gdy osobą wypełniającą formularz jest inna niż Klient osoba), rozpatrywania potencjalnych reklamacji (podstawą prawną przetwarzania danych jest realizacja prawnie uzasadnionych interesów Pluxee polegających na obsłudze procesów związanych ze składanymi reklamacjami - art. 6 ust. 1 lit. f) RODO) oraz w celach marketingowych Pluxee (podstawa przetwarzania danych to realizacja prawnie uzasadnionych interesów Pluxee w postaci marketingu produktów i usług Pluxee – art. 6 ust. 1 lit. f) RODO), w tym w sposób zautomatyzowany (profilowanie). Pluxee wykorzystuje profilowanie prowadząc statystyki i analizy Twoich zachowań oraz preferencji, związanych z zakupem lub korzystaniem z produktów i usług Pluxee w celu lepszego dopasowania do Twoich oczekiwań oferowanych produktów i usług. W wyniku profilowania dokonywanego przez Pluxee będziesz otrzymywać informacje o produktach i usługach lepiej dostosowanych do Twoich preferencji. Tylko w przypadku, gdy wyrazisz na to wyraźną zgodę, Pluxee będzie przetwarzać Twoje dane osobowe w celu profilowania, którego skutkiem będą automatycznie podejmowane decyzje, mające dla Ciebie znaczenie np. udzielenie rabatów lub ofert specjalnych (podstawa przetwarzania danych to Twoja zgoda – art. 6 ust. 1 lit. a) RODO. W tym zakresie, w celu ochrony Twoich praw i wolności, masz prawo do wyrażenia własnego stanowiska i do zakwestionowania podjętej w wyniku profilowania decyzji). Podanie przez Ciebie danych osobowych jest dobrowolne. Skutkiem niepodania danych będzie brak możliwości informowania Cię o produktach i usługach Pluxee. Twoje dane mogą być przekazywane podmiotom świadczącym na naszą rzecz usługi serwisowe z zakresu IT, usługi telemarketingu oraz podmiotom przygotowującym i realizującym dla nas wysyłkę e-maili. Dane osobowe będziemy przetwarzać do czasu ewentualnego wniesienia przez Ciebie sprzeciwu wobec przetwarzania danych, względnie - odwołania zgody, a po tym okresie wyłącznie dla celów i przez okres oraz w zakresie wymaganym przez przepisy prawa lub dla zabezpieczenia ewentualnych roszczeń. Możesz żądać dostępu do swoich danych osobowych, ich sprostowania, usunięcia lub ograniczenia przetwarzania. Masz prawo wniesienia sprzeciwu wobec przetwarzania – w tym profilowania. Masz także prawo do przenoszenia swoich danych oraz prawo cofnięcia zgody w każdym czasie, co pozostanie bez wpływu na zgodność z prawem przetwarzania dokonanego przez Pluxee przed jej cofnięciem oraz masz prawo wniesienia skargi do organu nadzorczego (Prezesa Urzędu Ochrony Danych Osobowych).Nie będziemy przekazywać Twoich danych do Państw trzecich. Jeżeli podstawą przetwarzania danych osobowych jest Twoja zgoda, masz prawo ją cofnąć w każdym momencie bez wpływu na zgodność z prawem przetwarzania dokonanego przed jej cofnięciem.                                                                             "]
[null,"Data:",null,null,null,null,"Pieczęć firmowa i podpis"]
[]
[]
[]
[null,"WYŻEJ WYMIENIONE DANE SĄ NIEZBĘDNE DO REALIZACJI ZAMÓWIENIA\nPoprzez umieszczenie podpisu pod niniejszym Zamówieniem i jego przesłanie w formie papierowej lub elektronicznej, jak również zaakceptowanie wypełnionego Zamówienia w formie mailowej Zamawiający oświadcza, że:  \n- jest upoważniony do reprezentowania Klienta na podstawie KRS, CEIDG lub pełnomocnictwa,\n- upoważnia Pluxee Polska Sp. z o.o.  do wystawienia faktury VAT bez podpisu. Dane do faktury zostały określone w punkcie I.\nCZYTELNIE WYPEŁNIONE ZAMÓWIENIE PROSIMY WYSŁAĆ:\n- mailem na adres: info.SVC.PL@sodexo.com\nSkładając Zamówienie Klient każdorazowo zawiera Umowę na dostawę eVoucherów wskazanych w Zamówieniu, na warunkach określonych w tym Zamówieniu, których postanowienia zastępują postanowienia dotychczasowych, innych Umów zawartych odrębnie z Klientem.  "]
[]
[]
[]
[]
[]
[]
["Pluxee Polska Sp. z o.o. z siedzibą w Warszawie, ul. Rzymowskiego 53, 02-697 Warszawa, Sąd Rejonowy dla m. st. Warszawy w Warszawie,\nXIII Wydział Gospodarczy KRS , numer KRS 0000033826, Kapitał Zakładowy 3 000 000 PLN , NIP 522-23-57-343"]
[]
["ver. 07.2022"]

{"sheet":"map1","index":1,"n_rows":5,"n_cols":1,"rows_kept":5,"cut":false,"hidden":true,"merged":[]}
["Helios 2D"]
["Multikino 2D cała Polska z Warszawą"]
["Multikino 2D cała Polska bez Warszawy"]
["CinemaCity 2D cała Polska z Warszawą"]
["CinemaCity 2D cała Polska bez Warszawy"]

{"sheet":"map","index":2,"n_rows":6,"n_cols":3,"rows_kept":6,"cut":false,"hidden":true,"merged":[]}
["Rodzaj eVouchera do Kina","Proponowana cena sprzedaży","Minimalna cena sprzedaży"]
["Helios 2D",16,14]
["Multikino 2D cała Polska z Warszawą",20,18]
["Multikino 2D cała Polska bez Warszawy",18,16]
["CinemaCity 2D cała Polska z Warszawą",21,19]
["CinemaCity 2D cała Polska bez Warszawy",20,18]

{"sheet":"Specyfikacja Zamówienia","index":3,"n_rows":53,"n_cols":6,"rows_kept":53,"cut":false,"hidden":false,"merged":[]}
[null,null,"SUMA RAZEM",{"$f":"SUM($D$3:$D$1048576)","v":0}]
["Rodzaj biletów do Kina","Cena biletu \n(brutto PLN)","Liczba \nbiletów","Wartość \nbiletów","Komentarz","Komentarz Sodexo"]
["Helios 2D",null,null,{"$f":"B3*C3","v":0},null,{"$f":"IF(ISBLANK($A3),\"Prosimy o uzupełnienie danych\",IF(ISBLANK($B3),\"Prosimy o wprowadzenie ceny biletu\",IF($B3<VLOOKUP($A3,map!$A:$C,3,0),\"Warunki handlowe niemożliwe do realizacji\",IF($B3<VLOOKUP($A3,map!$A:$C,2,0),\"Warunki handlowe wymagają akceptacji\",\"\"))))","v":"Prosimy o wprowadzenie ceny biletu"}]
["Helios 2D",null,null,{"$f":"B4*C4","v":0},null,{"$f":"IF(ISBLANK($A4),\"Prosimy o uzupełnienie danych\",IF(ISBLANK($B4),\"Prosimy o wprowadzenie ceny biletu\",IF($B4<VLOOKUP($A4,map!$A:$C,3,0),\"Warunki handlowe niemożliwe do realizacji\",IF($B4<VLOOKUP($A4,map!$A:$C,2,0),\"Warunki handlowe wymagają akceptacji\",\"\"))))","v":"Prosimy o wprowadzenie ceny biletu"}]
["Helios 2D",null,null,{"$f":"B5*C5","v":0},null,{"$f":"IF(ISBLANK($A5),\"Prosimy o uzupełnienie danych\",IF(ISBLANK($B5),\"Prosimy o wprowadzenie ceny biletu\",IF($B5<VLOOKUP($A5,map!$A:$C,3,0),\"Warunki handlowe niemożliwe do realizacji\",IF($B5<VLOOKUP($A5,map!$A:$C,2,0),\"Warunki handlowe wymagają akceptacji\",\"\"))))","v":"Prosimy o wprowadzenie ceny biletu"}]
["Helios 2D",null,null,{"$f":"B6*C6","v":0},null,{"$f":"IF(ISBLANK($A6),\"Prosimy o uzupełnienie danych\",IF(ISBLANK($B6),\"Prosimy o wprowadzenie ceny biletu\",IF($B6<VLOOKUP($A6,map!$A:$C,3,0),\"Warunki handlowe niemożliwe do realizacji\",IF($B6<VLOOKUP($A6,map!$A:$C,2,0),\"Warunki handlowe wymagają akceptacji\",\"\"))))","v":"Prosimy o wprowadzenie ceny biletu"}]
["Helios 2D",null,null,{"$f":"B7*C7","v":0},null,{"$f":"IF(ISBLANK($A7),\"Prosimy o uzupełnienie danych\",IF(ISBLANK($B7),\"Prosimy o wprowadzenie ceny biletu\",IF($B7<VLOOKUP($A7,map!$A:$C,3,0),\"Warunki handlowe niemożliwe do realizacji\",IF($B7<VLOOKUP($A7,map!$A:$C,2,0),\"Warunki handlowe wymagają akceptacji\",\"\"))))","v":"Prosimy o wprowadzenie ceny biletu"}]
["Helios 2D",null,null,{"$f":"B8*C8","v":0},null,{"$f":"IF(ISBLANK($A8),\"Prosimy o uzupełnienie danych\",IF(ISBLANK($B8),\"Prosimy o wprowadzenie ceny biletu\",IF($B8<VLOOKUP($A8,map!$A:$C,3,0),\"Warunki handlowe niemożliwe do realizacji\",IF($B8<VLOOKUP($A8,map!$A:$C,2,0),\"Warunki handlowe wymagają akceptacji\",\"\"))))","v":"Prosimy o wprowadzenie ceny biletu"}]
["Helios 2D",null,null,0,null,{"$f":"IF(ISBLANK($A9),\"Prosimy o uzupełnienie danych\",IF(ISBLANK($B9),\"Prosimy o wprowadzenie ceny biletu\",IF($B9<VLOOKUP($A9,map!$A:$C,3,0),\"Warunki handlowe niemożliwe do realizacji\",IF($B9<VLOOKUP($A9,map!$A:$C,2,0),\"Warunki handlowe wymagają akceptacji\",\"\"))))","v":"Prosimy o wprowadzenie ceny biletu"}]
["Helios 2D",null,null,0,null,{"$f":"IF(ISBLANK($A10),\"Prosimy o uzupełnienie danych\",IF(ISBLANK($B10),\"Prosimy o wprowadzenie ceny biletu\",IF($B10<VLOOKUP($A10,map!$A:$C,3,0),\"Warunki handlowe niemożliwe do realizacji\",IF($B10<VLOOKUP($A10,map!$A:$C,2,0),\"Warunki handlowe wymagają akceptacji\",\"\"))))","v":"Prosimy o wprowadzenie ceny biletu"}]
["Helios 2D",null,null,0,null,{"$f":"IF(ISBLANK($A11),\"Prosimy o uzupełnienie danych\",IF(ISBLANK($B11),\"Prosimy o wprowadzenie ceny biletu\",IF($B11<VLOOKUP($A11,map!$A:$C,3,0),\"Warunki handlowe niemożliwe do realizacji\",IF($B11<VLOOKUP($A11,map!$A:$C,2,0),\"Warunki handlowe wymagają akceptacji\",\"\"))))","v":"Prosimy o wprowadzenie ceny biletu"}]
["Helios 2D",null,null,0,null,{"$f":"IF(ISBLANK($A12),\"Prosimy o uzupełnienie danych\",IF(ISBLANK($B12),\"Prosimy o wprowadzenie ceny biletu\",IF($B12<VLOOKUP($A12,map!$A:$C,3,0),\"Warunki handlowe niemożliwe do realizacji\",IF($B12<VLOOKUP($A12,map!$A:$C,2,0),\"Warunki handlowe wymagają akceptacji\",\"\"))))","v":"Prosimy o wprowadzenie ceny biletu"}]
["Helios 2D",null,null,0,null,{"$f":"IF(ISBLANK($A13),\"Prosimy o uzupełnienie danych\",IF(ISBLANK($B13),\"Prosimy o wprowadzenie ceny biletu\",IF($B13<VLOOKUP($A13,map!$A:$C,3,0),\"Warunki handlowe niemożliwe do realizacji\",IF($B13<VLOOKUP($A13,map!$A:$C,2,0),\"Warunki handlowe wymagają akceptacji\",\"\"))))","v":"Prosimy o wprowadzenie ceny biletu"}]
["Helios 2D",null,null,0,null,{"$f":"IF(ISBLANK($A14),\"Prosimy o uzupełnienie danych\",IF(ISBLANK($B14),\"Prosimy o wprowadzenie ceny biletu\",IF($B14<VLOOKUP($A14,map!$A:$C,3,0),\"Warunki handlowe niemożliwe do realizacji\",IF($B14<VLOOKUP($A14,map!$A:$C,2,0),\"Warunki handlowe wymagają akceptacji\",\"\"))))","v":"Prosimy o wprowadzenie ceny biletu"}]
["Helios 2D",null,null,0,null,{"$f":"IF(ISBLANK($A15),\"Prosimy o uzupełnienie danych\",IF(ISBLANK($B15),\"Prosimy o wprowadzenie ceny biletu\",IF($B15<VLOOKUP($A15,map!$A:$C,3,0),\"Warunki handlowe niemożliwe do realizacji\",IF($B15<VLOOKUP($A15,map!$A:$C,2,0),\"Warunki handlowe wymagają akceptacji\",\"\"))))","v":"Prosimy o wprowadzenie ceny biletu"}]
["Helios 2D",null,null,0,null,{"$f":"IF(ISBLANK($A16),\"Prosimy o uzupełnienie danych\",IF(ISBLANK($B16),\"Prosimy o wprowadzenie ceny biletu\",IF($B16<VLOOKUP($A16,map!$A:$C,3,0),\"Warunki handlowe niemożliwe do realizacji\",IF($B16<VLOOKUP($A16,map!$A:$C,2,0),\"Warunki handlowe wymagają akceptacji\",\"\"))))","v":"Prosimy o wprowadzenie ceny biletu"}]
["Helios 2D",null,null,0,null,{"$f":"IF(ISBLANK($A17),\"Prosimy o uzupełnienie danych\",IF(ISBLANK($B17),\"Prosimy o wprowadzenie ceny biletu\",IF($B17<VLOOKUP($A17,map!$A:$C,3,0),\"Warunki handlowe niemożliwe do realizacji\",IF($B17<VLOOKUP($A17,map!$A:$C,2,0),\"Warunki handlowe wymagają akceptacji\",\"\"))))","v":"Prosimy o wprowadzenie ceny biletu"}]
["Helios 2D",null,null,0,null,{"$f":"IF(ISBLANK($A18),\"Prosimy o uzupełnienie danych\",IF(ISBLANK($B18),\"Prosimy o wprowadzenie ceny biletu\",IF($B18<VLOOKUP($A18,map!$A:$C,3,0),\"Warunki handlowe niemożliwe do realizacji\",IF($B18<VLOOKUP($A18,map!$A:$C,2,0),\"Warunki handlowe wymagają akceptacji\",\"\"))))","v":"Prosimy o wprowadzenie ceny biletu"}]
["Helios 2D",null,null,0,null,{"$f":"IF(ISBLANK($A19),\"Prosimy o uzupełnienie danych\",IF(ISBLANK($B19),\"Prosimy o wprowadzenie ceny biletu\",IF($B19<VLOOKUP($A19,map!$A:$C,3,0),\"Warunki handlowe niemożliwe do realizacji\",IF($B19<VLOOKUP($A19,map!$A:$C,2,0),\"Warunki handlowe wymagają akceptacji\",\"\"))))","v":"Prosimy o wprowadzenie ceny biletu"}]
["Helios 2D",null,null,{"$f":"B20*C20","v":0},null,{"$f":"IF(ISBLANK($A20),\"Prosimy o uzupełnienie danych\",IF(ISBLANK($B20),\"Prosimy o wprowadzenie ceny biletu\",IF($B20<VLOOKUP($A20,map!$A:$C,3,0),\"Warunki handlowe niemożliwe do realizacji\",IF($B20<VLOOKUP($A20,map!$A:$C,2,0),\"Warunki handlowe wymagają akceptacji\",\"\"))))","v":"Prosimy o wprowadzenie ceny biletu"}]
["Helios 2D",null,null,0,null,{"$f":"IF(ISBLANK($A21),\"Prosimy o uzupełnienie danych\",IF(ISBLANK($B21),\"Prosimy o wprowadzenie ceny biletu\",IF($B21<VLOOKUP($A21,map!$A:$C,3,0),\"Warunki handlowe niemożliwe do realizacji\",IF($B21<VLOOKUP($A21,map!$A:$C,2,0),\"Warunki handlowe wymagają akceptacji\",\"\"))))","v":"Prosimy o wprowadzenie ceny biletu"}]
["Helios 2D",null,null,0,null,{"$f":"IF(ISBLANK($A22),\"Prosimy o uzupełnienie danych\",IF(ISBLANK($B22),\"Prosimy o wprowadzenie ceny biletu\",IF($B22<VLOOKUP($A22,map!$A:$C,3,0),\"Warunki handlowe niemożliwe do realizacji\",IF($B22<VLOOKUP($A22,map!$A:$C,2,0),\"Warunki handlowe wymagają akceptacji\",\"\"))))","v":"Prosimy o wprowadzenie ceny biletu"}]
["Helios 2D",null,null,0,null,{"$f":"IF(ISBLANK($A23),\"Prosimy o uzupełnienie danych\",IF(ISBLANK($B23),\"Prosimy o wprowadzenie ceny biletu\",IF($B23<VLOOKUP($A23,map!$A:$C,3,0),\"Warunki handlowe niemożliwe do realizacji\",IF($B23<VLOOKUP($A23,map!$A:$C,2,0),\"Warunki handlowe wymagają akceptacji\",\"\"))))","v":"Prosimy o wprowadzenie ceny biletu"}]
["Helios 2D",null,null,0,null,{"$f":"IF(ISBLANK($A24),\"Prosimy o uzupełnienie danych\",IF(ISBLANK($B24),\"Prosimy o wprowadzenie ceny biletu\",IF($B24<VLOOKUP($A24,map!$A:$C,3,0),\"Warunki handlowe niemożliwe do realizacji\",IF($B24<VLOOKUP($A24,map!$A:$C,2,0),\"Warunki handlowe wymagają akceptacji\",\"\"))))","v":"Prosimy o wprowadzenie ceny biletu"}]
["Helios 2D",null,null,0,null,{"$f":"IF(ISBLANK($A25),\"Prosimy o uzupełnienie danych\",IF(ISBLANK($B25),\"Prosimy o wprowadzenie ceny biletu\",IF($B25<VLOOKUP($A25,map!$A:$C,3,0),\"Warunki handlowe niemożliwe do realizacji\",IF($B25<VLOOKUP($A25,map!$A:$C,2,0),\"Warunki handlowe wymagają akceptacji\",\"\"))))","v":"Prosimy o wprowadzenie ceny biletu"}]
[null,null,null,0,null,{"$f":"IF(ISBLANK($A26),\"Prosimy o uzupełnienie danych\",IF(ISBLANK($B26),\"Prosimy o wprowadzenie ceny biletu\",IF($B26<VLOOKUP($A26,map!$A:$C,3,0),\"Warunki handlowe niemożliwe do realizacji\",IF($B26<VLOOKUP($A26,map!$A:$C,2,0),\"Warunki handlowe wymagają akceptacji\",\"\"))))","v":"Prosimy o uzupełnienie danych"}]
[null,null,null,0,null,{"$f":"IF(ISBLANK($A27),\"Prosimy o uzupełnienie danych\",IF(ISBLANK($B27),\"Prosimy o wprowadzenie ceny biletu\",IF($B27<VLOOKUP($A27,map!$A:$C,3,0),\"Warunki handlowe niemożliwe do realizacji\",IF($B27<VLOOKUP($A27,map!$A:$C,2,0),\"Warunki handlowe wymagają akceptacji\",\"\"))))","v":"Prosimy o uzupełnienie danych"}]
[null,null,null,0,null,{"$f":"IF(ISBLANK($A28),\"Prosimy o uzupełnienie danych\",IF(ISBLANK($B28),\"Prosimy o wprowadzenie ceny biletu\",IF($B28<VLOOKUP($A28,map!$A:$C,3,0),\"Warunki handlowe niemożliwe do realizacji\",IF($B28<VLOOKUP($A28,map!$A:$C,2,0),\"Warunki handlowe wymagają akceptacji\",\"\"))))","v":"Prosimy o uzupełnienie danych"}]
[null,null,null,0,null,{"$f":"IF(ISBLANK($A29),\"Prosimy o uzupełnienie danych\",IF(ISBLANK($B29),\"Prosimy o wprowadzenie ceny biletu\",IF($B29<VLOOKUP($A29,map!$A:$C,3,0),\"Warunki handlowe niemożliwe do realizacji\",IF($B29<VLOOKUP($A29,map!$A:$C,2,0),\"Warunki handlowe wymagają akceptacji\",\"\"))))","v":"Prosimy o uzupełnienie danych"}]
[null,null,null,0,null,{"$f":"IF(ISBLANK($A30),\"Prosimy o uzupełnienie danych\",IF(ISBLANK($B30),\"Prosimy o wprowadzenie ceny biletu\",IF($B30<VLOOKUP($A30,map!$A:$C,3,0),\"Warunki handlowe niemożliwe do realizacji\",IF($B30<VLOOKUP($A30,map!$A:$C,2,0),\"Warunki handlowe wymagają akceptacji\",\"\"))))","v":"Prosimy o uzupełnienie danych"}]
[null,null,null,0,null,{"$f":"IF(ISBLANK($A31),\"Prosimy o uzupełnienie danych\",IF(ISBLANK($B31),\"Prosimy o wprowadzenie ceny biletu\",IF($B31<VLOOKUP($A31,map!$A:$C,3,0),\"Warunki handlowe niemożliwe do realizacji\",IF($B31<VLOOKUP($A31,map!$A:$C,2,0),\"Warunki handlowe wymagają akceptacji\",\"\"))))","v":"Prosimy o uzupełnienie danych"}]
[null,null,null,0,null,{"$f":"IF(ISBLANK($A32),\"Prosimy o uzupełnienie danych\",IF(ISBLANK($B32),\"Prosimy o wprowadzenie ceny biletu\",IF($B32<VLOOKUP($A32,map!$A:$C,3,0),\"Warunki handlowe niemożliwe do realizacji\",IF($B32<VLOOKUP($A32,map!$A:$C,2,0),\"Warunki handlowe wymagają akceptacji\",\"\"))))","v":"Prosimy o uzupełnienie danych"}]
[null,null,null,0,null,{"$f":"IF(ISBLANK($A33),\"Prosimy o uzupełnienie danych\",IF(ISBLANK($B33),\"Prosimy o wprowadzenie ceny biletu\",IF($B33<VLOOKUP($A33,map!$A:$C,3,0),\"Warunki handlowe niemożliwe do realizacji\",IF($B33<VLOOKUP($A33,map!$A:$C,2,0),\"Warunki handlowe wymagają akceptacji\",\"\"))))","v":"Prosimy o uzupełnienie danych"}]
[null,null,null,0,null,{"$f":"IF(ISBLANK($A34),\"Prosimy o uzupełnienie danych\",IF(ISBLANK($B34),\"Prosimy o wprowadzenie ceny biletu\",IF($B34<VLOOKUP($A34,map!$A:$C,3,0),\"Warunki handlowe niemożliwe do realizacji\",IF($B34<VLOOKUP($A34,map!$A:$C,2,0),\"Warunki handlowe wymagają akceptacji\",\"\"))))","v":"Prosimy o uzupełnienie danych"}]
[null,null,null,0,null,{"$f":"IF(ISBLANK($A35),\"Prosimy o uzupełnienie danych\",IF(ISBLANK($B35),\"Prosimy o wprowadzenie ceny biletu\",IF($B35<VLOOKUP($A35,map!$A:$C,3,0),\"Warunki handlowe niemożliwe do realizacji\",IF($B35<VLOOKUP($A35,map!$A:$C,2,0),\"Warunki handlowe wymagają akceptacji\",\"\"))))","v":"Prosimy o uzupełnienie danych"}]
[null,null,null,0,null,{"$f":"IF(ISBLANK($A36),\"Prosimy o uzupełnienie danych\",IF(ISBLANK($B36),\"Prosimy o wprowadzenie ceny biletu\",IF($B36<VLOOKUP($A36,map!$A:$C,3,0),\"Warunki handlowe niemożliwe do realizacji\",IF($B36<VLOOKUP($A36,map!$A:$C,2,0),\"Warunki handlowe wymagają akceptacji\",\"\"))))","v":"Prosimy o uzupełnienie danych"}]
[null,null,null,0,null,{"$f":"IF(ISBLANK($A37),\"Prosimy o uzupełnienie danych\",IF(ISBLANK($B37),\"Prosimy o wprowadzenie ceny biletu\",IF($B37<VLOOKUP($A37,map!$A:$C,3,0),\"Warunki handlowe niemożliwe do realizacji\",IF($B37<VLOOKUP($A37,map!$A:$C,2,0),\"Warunki handlowe wymagają akceptacji\",\"\"))))","v":"Prosimy o uzupełnienie danych"}]
[null,null,null,0,null,{"$f":"IF(ISBLANK($A38),\"Prosimy o uzupełnienie danych\",IF(ISBLANK($B38),\"Prosimy o wprowadzenie ceny biletu\",IF($B38<VLOOKUP($A38,map!$A:$C,3,0),\"Warunki handlowe niemożliwe do realizacji\",IF($B38<VLOOKUP($A38,map!$A:$C,2,0),\"Warunki handlowe wymagają akceptacji\",\"\"))))","v":"Prosimy o uzupełnienie danych"}]
[null,null,null,0,null,{"$f":"IF(ISBLANK($A39),\"Prosimy o uzupełnienie danych\",IF(ISBLANK($B39),\"Prosimy o wprowadzenie ceny biletu\",IF($B39<VLOOKUP($A39,map!$A:$C,3,0),\"Warunki handlowe niemożliwe do realizacji\",IF($B39<VLOOKUP($A39,map!$A:$C,2,0),\"Warunki handlowe wymagają akceptacji\",\"\"))))","v":"Prosimy o uzupełnienie danych"}]
[null,null,null,0,null,{"$f":"IF(ISBLANK($A40),\"Prosimy o uzupełnienie danych\",IF(ISBLANK($B40),\"Prosimy o wprowadzenie ceny biletu\",IF($B40<VLOOKUP($A40,map!$A:$C,3,0),\"Warunki handlowe niemożliwe do realizacji\",IF($B40<VLOOKUP($A40,map!$A:$C,2,0),\"Warunki handlowe wymagają akceptacji\",\"\"))))","v":"Prosimy o uzupełnienie danych"}]
[null,null,null,0,null,{"$f":"IF(ISBLANK($A41),\"Prosimy o uzupełnienie danych\",IF(ISBLANK($B41),\"Prosimy o wprowadzenie ceny biletu\",IF($B41<VLOOKUP($A41,map!$A:$C,3,0),\"Warunki handlowe niemożliwe do realizacji\",IF($B41<VLOOKUP($A41,map!$A:$C,2,0),\"Warunki handlowe wymagają akceptacji\",\"\"))))","v":"Prosimy o uzupełnienie danych"}]
[null,null,null,0,null,{"$f":"IF(ISBLANK($A42),\"Prosimy o uzupełnienie danych\",IF(ISBLANK($B42),\"Prosimy o wprowadzenie ceny biletu\",IF($B42<VLOOKUP($A42,map!$A:$C,3,0),\"Warunki handlowe niemożliwe do realizacji\",IF($B42<VLOOKUP($A42,map!$A:$C,2,0),\"Warunki handlowe wymagają akceptacji\",\"\"))))","v":"Prosimy o uzupełnienie danych"}]
[null,null,null,0,null,{"$f":"IF(ISBLANK($A43),\"Prosimy o uzupełnienie danych\",IF(ISBLANK($B43),\"Prosimy o wprowadzenie ceny biletu\",IF($B43<VLOOKUP($A43,map!$A:$C,3,0),\"Warunki handlowe niemożliwe do realizacji\",IF($B43<VLOOKUP($A43,map!$A:$C,2,0),\"Warunki handlowe wymagają akceptacji\",\"\"))))","v":"Prosimy o uzupełnienie danych"}]
[null,null,null,0,null,{"$f":"IF(ISBLANK($A44),\"Prosimy o uzupełnienie danych\",IF(ISBLANK($B44),\"Prosimy o wprowadzenie ceny biletu\",IF($B44<VLOOKUP($A44,map!$A:$C,3,0),\"Warunki handlowe niemożliwe do realizacji\",IF($B44<VLOOKUP($A44,map!$A:$C,2,0),\"Warunki handlowe wymagają akceptacji\",\"\"))))","v":"Prosimy o uzupełnienie danych"}]
[null,null,null,0,null,{"$f":"IF(ISBLANK($A45),\"Prosimy o uzupełnienie danych\",IF(ISBLANK($B45),\"Prosimy o wprowadzenie ceny biletu\",IF($B45<VLOOKUP($A45,map!$A:$C,3,0),\"Warunki handlowe niemożliwe do realizacji\",IF($B45<VLOOKUP($A45,map!$A:$C,2,0),\"Warunki handlowe wymagają akceptacji\",\"\"))))","v":"Prosimy o uzupełnienie danych"}]
[null,null,null,0,null,{"$f":"IF(ISBLANK($A46),\"Prosimy o uzupełnienie danych\",IF(ISBLANK($B46),\"Prosimy o wprowadzenie ceny biletu\",IF($B46<VLOOKUP($A46,map!$A:$C,3,0),\"Warunki handlowe niemożliwe do realizacji\",IF($B46<VLOOKUP($A46,map!$A:$C,2,0),\"Warunki handlowe wymagają akceptacji\",\"\"))))","v":"Prosimy o uzupełnienie danych"}]
[null,null,null,0,null,{"$f":"IF(ISBLANK($A47),\"Prosimy o uzupełnienie danych\",IF(ISBLANK($B47),\"Prosimy o wprowadzenie ceny biletu\",IF($B47<VLOOKUP($A47,map!$A:$C,3,0),\"Warunki handlowe niemożliwe do realizacji\",IF($B47<VLOOKUP($A47,map!$A:$C,2,0),\"Warunki handlowe wymagają akceptacji\",\"\"))))","v":"Prosimy o uzupełnienie danych"}]
[null,null,null,0,null,{"$f":"IF(ISBLANK($A48),\"Prosimy o uzupełnienie danych\",IF(ISBLANK($B48),\"Prosimy o wprowadzenie ceny biletu\",IF($B48<VLOOKUP($A48,map!$A:$C,3,0),\"Warunki handlowe niemożliwe do realizacji\",IF($B48<VLOOKUP($A48,map!$A:$C,2,0),\"Warunki handlowe wymagają akceptacji\",\"\"))))","v":"Prosimy o uzupełnienie danych"}]
[null,null,null,0,null,{"$f":"IF(ISBLANK($A49),\"Prosimy o uzupełnienie danych\",IF(ISBLANK($B49),\"Prosimy o wprowadzenie ceny biletu\",IF($B49<VLOOKUP($A49,map!$A:$C,3,0),\"Warunki handlowe niemożliwe do realizacji\",IF($B49<VLOOKUP($A49,map!$A:$C,2,0),\"Warunki handlowe wymagają akceptacji\",\"\"))))","v":"Prosimy o uzupełnienie danych"}]
[null,null,null,0,null,{"$f":"IF(ISBLANK($A50),\"Prosimy o uzupełnienie danych\",IF(ISBLANK($B50),\"Prosimy o wprowadzenie ceny biletu\",IF($B50<VLOOKUP($A50,map!$A:$C,3,0),\"Warunki handlowe niemożliwe do realizacji\",IF($B50<VLOOKUP($A50,map!$A:$C,2,0),\"Warunki handlowe wymagają akceptacji\",\"\"))))","v":"Prosimy o uzupełnienie danych"}]
[null,null,null,0,null,{"$f":"IF(ISBLANK($A51),\"Prosimy o uzupełnienie danych\",IF(ISBLANK($B51),\"Prosimy o wprowadzenie ceny biletu\",IF($B51<VLOOKUP($A51,map!$A:$C,3,0),\"Warunki handlowe niemożliwe do realizacji\",IF($B51<VLOOKUP($A51,map!$A:$C,2,0),\"Warunki handlowe wymagają akceptacji\",\"\"))))","v":"Prosimy o uzupełnienie danych"}]
[null,null,null,0,null,{"$f":"IF(ISBLANK($A52),\"Prosimy o uzupełnienie danych\",IF(ISBLANK($B52),\"Prosimy o wprowadzenie ceny biletu\",IF($B52<VLOOKUP($A52,map!$A:$C,3,0),\"Warunki handlowe niemożliwe do realizacji\",IF($B52<VLOOKUP($A52,map!$A:$C,2,0),\"Warunki handlowe wymagają akceptacji\",\"\"))))","v":"Prosimy o uzupełnienie danych"}]
[null,null,null,0,null,{"$f":"IF(ISBLANK($A53),\"Prosimy o uzupełnienie danych\",IF(ISBLANK($B53),\"Prosimy o wprowadzenie ceny biletu\",IF($B53<VLOOKUP($A53,map!$A:$C,3,0),\"Warunki handlowe niemożliwe do realizacji\",IF($B53<VLOOKUP($A53,map!$A:$C,2,0),\"Warunki handlowe wymagają akceptacji\",\"\"))))","v":"Prosimy o uzupełnienie danych"}]

{"sheet":"Regulaminy Partnerskie","index":4,"n_rows":16,"n_cols":3,"rows_kept":16,"cut":false,"hidden":false,"merged":[]}
[]
[]
[]
[]
[]
[]
[]
[]
[]
[]
[]
[]
["LP.","Rodzaj nagrody","Regulamin"]
[1,"Helios","https://bazawiedzy.sodexo.pl/hubfs/eVouchery_Regulaminy_Partner%C3%B3w/Zasady%20wykorzystania%20ekod%C3%B3w%20w%20kinach%20Helios.pdf"]
[2,"Multikino","https://multikino.pl/informacje/regulaminy"]
[3,"Cinema City","https://www.cinema-city.pl/static/pl/pl/regulamin-kina-vouchery"]